bitfinex/quotes_ETHUSD_20240610
["timestamp","ask_amount","ask_price","bid_price","bid_amount"]
[1718038404515,3.37142276,3697.6,3697.2,2.4272]
[1718038405019,0.56706958,3697.8,3697.5,0.712]
[1718038405184,2.70427,3697.9,3697.5,0.712]
[1718038405185,3.27133958,3697.9,3697.5,0.712]
[1718038405385,2.70427,3697.9,3697.5,0.712]
[1718038406318,2.70442,3697.7,3697.4,2.4272]
[1718038406530,2.70442,3697.7,3697.4,3.1392]
[1718038407912,0.270427,3697.9,3697.4,3.1392]
[1718038408302,3.27119958,3698.1,3697.4,3.1392]
[1718038408303,2.70413,3698.1,3697.4,3.1392]
[1718038408506,3.27119958,3698.1,3697.4,3.1392]
[1718038408708,2.70413,3698.1,3697.4,3.1392]
[1718038409629,3.27119958,3698.1,3697.4,3.1392]
[1718038410001,2.70413,3698.1,3697.4,3.1392]
[1718038410207,0.39831996,3698.0,3697.4,3.1392]
[1718038411602,2.70413,3698.1,3697.4,5.84378]
[1718038414017,3.13756958,3698.4,3697.6,3.41644]
[1718038414018,3.27099958,3698.4,3697.6,3.41644]
[1718038414422,2.70393,3698.4,3697.6,3.41644]
[1718038414583,0.57824996,3698.3,3697.6,3.41644]
[1718038414914,0.57824996,3698.3,3697.6,2.70444]
[1718038415117,2.70401,3698.2,3697.6,2.70444]
[1718038415285,2.70401,3698.2,3697.6,3.41644]
[1718038424719,2.70401,3698.2,3697.6,2.70444]
[1718038424854,0.328226,3698.1,3697.7,0.712]
[1718038431268,0.328226,3698.1,3697.6,2.70444]
[1718038431601,0.328226,3698.1,3697.6,3.41644]
[1718038432870,0.328226,3698.1,3697.6,0.712]
[1718038433403,2.70416,3698.0,3697.6,0.712]
[1718038435581,2.70433,3697.8,3697.6,0.712]
[1718038437401,2.70448,3697.6,3697.5,0.712]
[1718038437764,0.56706958,3698.0,3697.5,0.712]
[1718038439271,0.56706958,3697.9,3697.5,0.712]
[1718038439600,0.56706958,3698.0,3697.5,0.712]
[1718038440178,0.56706958,3697.9,3697.5,0.712]
[1718038440713,0.56706958,3698.0,3697.5,0.712]
[1718038441075,0.56706958,3697.9,3697.0,7.44]
[1718038441275,0.56706958,3697.9,3697.2,0.712]
[1718038441587,0.61490399,3698.0,3697.2,0.712]
[1718038441588,0.56706958,3697.7,3697.2,0.712]
[1718038442174,3.54891805,3697.8,3697.2,0.712]
[1718038442175,0.56706958,3697.6,3697.2,0.712]
[1718038442804,0.56706958,3697.7,3697.2,0.712]
[1718038443106,0.56706958,3697.6,3697.2,0.712]
[1718038444302,0.56706958,3697.6,3697.3,5.02915]
[1718038444519,0.84454805,3697.7,3697.4,0.712]
[1718038444520,0.56706958,3697.7,3697.4,0.712]
[1718038444812,0.56706958,3697.7,3697.5,2.70453]
[1718038445025,0.56706958,3697.8,3697.6,2.3245]
[1718038445229,0.56706958,3697.8,3697.6,3.0365]
[1718038446367,0.56706958,3697.8,3697.7,2.70438]
[1718038447001,0.56706958,3697.9,3697.7,2.70438]
[1718038449243,0.56706958,3697.8,3697.7,2.70438]
[1718038452435,0.56706958,3697.9,3697.7,2.70438]
[1718038453027,0.56706958,3697.9,3697.8,0.712]
[1718038453400,0.56706958,3698.0,3697.8,0.712]
[1718038457360,0.56706958,3698.0,3697.9,2.70423]
[1718038461946,0.84454805,3698.1,3697.6,5.74088]
[1718038462267,0.56731437,3697.9,3697.6,3.41638]
[1718038462467,0.56731437,3697.8,3697.6,3.41638]
[1718038466116,0.56731437,3697.7,3697.6,3.41638]
[1718038466609,0.56731437,3697.8,3697.6,3.41638]
[1718038468914,0.56731437,3697.8,3697.6,2.70438]
[1718038472309,0.56731437,3697.8,3697.2,2.4043]
[1718038472481,0.56731437,3697.8,3697.4,0.712]
[1718038475302,0.56731437,3697.8,3697.6,0.712]
[1718038478630,0.56731437,3697.8,3697.0,8.00697188]
[1718038478631,2.3477,3697.7,3697.0,8.00697188]
[1718038478838,2.3477,3697.7,3697.0,7.44]
[1718038478839,2.91501437,3697.7,3697.0,7.44]
[1718038479113,2.91501437,3697.7,3697.0,8.152]
[1718038479114,0.56731437,3697.3,3697.0,8.152]
[1718038479313,0.56731437,3697.3,3697.0,0.712]
[1718038479520,3.47450635,3697.7,3697.0,0.712]
[1718038479521,0.56731437,3697.4,3697.0,0.712]
[1718038480212,0.56731437,3697.4,3697.0,3.712]
[1718038482212,3.27194437,3697.4,3697.0,3.0]
[1718038482520,0.56731437,3697.3,3696.9,0.75902801]
[1718038482817,0.56731437,3697.2,3696.9,0.04702801]
[1718038483606,2.96751437,3697.2,3696.9,0.04702801]
[1718038486230,0.56731437,3697.2,3696.9,0.04702801]
[1718038486532,4.03102825,3697.4,3697.0,0.712]
[1718038489304,0.72790763,3697.3,3697.0,0.712]
[1718038490421,3.27194437,3697.4,3697.0,0.712]
[1718038491542,2.70463,3697.4,3697.0,0.712]
[1718038492638,3.27194437,3697.4,3697.0,0.712]
[1718038493010,2.70463,3697.4,3697.0,0.712]
[1718038494046,3.27194437,3697.4,3697.0,0.712]
[1718038494344,2.70463,3697.4,3697.0,0.712]
[1718038495651,0.56731437,3697.5,3697.1,2.4721]
[1718038495952,0.56731437,3697.5,3697.2,0.712]
[1718038498756,0.56731437,3697.6,3697.4,0.712]
[1718038499128,0.56731437,3697.9,3697.4,3.41659]
[1718038499452,3.27154437,3698.0,3697.6,0.712]
[1718038499759,2.70423,3698.0,3697.6,0.712]
[1718038500551,3.27154437,3698.0,3697.5,2.4721]
[1718038500761,3.68315361,3698.0,3697.4,2.70459]
[1718038501816,3.68315361,3698.0,3697.4,3.41659]
[1718038503650,0.56731437,3697.9,3697.4,3.41659]
[1718038509932,0.56731437,3697.9,3697.6,0.712]
[1718038510146,3.27154437,3698.0,3697.6,0.712]
[1718038510464,0.56731437,3698.0,3697.8,0.712]
[1718038510648,0.56731437,3698.1,3697.8,0.712]
[1718038510846,0.56731437,3698.2,3697.8,3.4163]
[1718038511360,3.27131437,3698.3,3697.8,3.4163]
[1718038511764,3.27131437,3698.3,3697.8,2.7043]
[1718038511955,0.56731437,3698.3,3697.8,3.4163]
[1718038512573,2.70388,3698.4,3697.8,3.4163]
[1718038512574,3.27119437,3698.4,3697.8,3.4163]
[1718038512871,0.64798424,3698.3,3697.8,3.4163]
[1718038513064,1.21529861,3698.3,3697.8,3.4163]
[1718038513833,0.64798424,3698.3,3697.8,3.4163]
[1718038514170,1.21529861,3698.3,3697.8,3.4163]
[1718038514458,0.64798424,3698.3,3697.8,3.4163]
[1718038519680,0.64798424,3698.3,3697.8,2.7043]
[1718038519983,0.39191786,3698.2,3697.8,2.7043]
[1718038527499,2.70388,3698.4,3697.8,2.7043]
[1718038527686,5.10412,3697.1,3697.0,0.61399656]
[1718038527885,6.36612,3697.1,3697.0,0.56697188]
[1718038528087,9.36612,3697.1,3697.0,0.56697188]
[1718038528293,2.70511,3696.7,3696.4,7.44]
[1718038528491,0.5663719,3696.5,3696.4,7.44]
[1718038528692,1.1163719,3696.5,3696.4,7.44]
[1718038529501,0.55,3696.5,3696.4,7.44]
[1718038530495,2.70526,3696.5,3696.4,7.44]
[1718038530808,3.25526,3696.5,3696.4,7.44]
[1718038533165,2.70556,3696.1,3695.8,8.152]
[1718038533398,2.70556,3696.1,3695.8,0.712]
[1718038533967,2.70556,3696.1,3695.5,2.70597]
[1718038534167,2.70556,3696.1,3695.7,0.712]
[1718038536265,2.70556,3696.1,3695.7,1.13541818]
[1718038538965,2.70556,3696.1,3695.7,0.42341818]
[1718038539171,0.55,3696.5,3696.0,0.712]
[1718038539172,2.70535,3696.4,3696.0,0.712]
[1718038539365,2.70535,3696.4,3695.9,2.3618]
[1718038539609,2.70535,3696.4,3696.2,0.712]
[1718038540392,2.70535,3696.4,3696.0,0.712]
[1718038550514,2.70535,3696.4,3696.1,2.3599]
[1718038550682,2.70535,3696.4,3696.2,0.712]
[1718038550878,2.8777719,3697.5,3696.3,2.70538]
[1718038551106,1.13274381,3697.9,3696.3,2.70538]
[1718038551107,2.70472,3697.3,3697.2,0.712]
[1718038552698,2.70472,3697.3,3696.7,2.70508]
[1718038552912,2.70472,3697.3,3697.0,0.712]
[1718038554002,2.70472,3697.3,3697.2,0.712]
[1718038554321,2.7045,3697.6,3697.2,0.712]
[1718038558326,2.7045,3697.6,3697.4,0.712]
[1718038558725,2.70427,3697.9,3697.4,0.712]
[1718038561814,2.70427,3697.9,3697.1,2.70478]
[1718038562031,2.70427,3697.9,3697.4,0.712]
[1718038567915,2.70427,3697.9,3697.6,0.712]
[1718038568120,2.70427,3697.9,3697.7,2.4585]
[1718038568649,7.00895786,3698.6,3697.7,2.4585]
[1718038568650,2.70405,3698.2,3697.7,2.4585]
[1718038569734,2.70405,3698.2,3698.0,0.712]
[1718038569932,2.4474,3698.6,3698.0,0.712]
[1718038569933,2.70385,3698.5,3698.0,0.712]
[1718038570110,3.25385,3698.5,3698.0,0.712]
[1718038571811,2.70396,3698.3,3697.7,5.16286]
[1718038572011,2.70396,3698.3,3698.0,0.712]
[1718038578341,2.70396,3698.3,3697.7,5.16286]
[1718038578545,2.70396,3698.3,3697.9,0.712]
[1718038595862,3.2703319,3698.3,3697.9,0.712]
[1718038596482,0.5663719,3698.2,3697.9,0.712]
[1718038597663,3.2703319,3698.3,3697.9,0.712]
[1718038598657,0.5663719,3698.2,3697.9,0.712]
[1718038605049,0.5663719,3698.1,3697.9,0.712]
[1718038606464,0.5663719,3698.2,3697.9,0.712]
[1718038608083,0.5663719,3698.2,3698.1,0.712]
[1718038608288,0.5663719,3698.2,3698.1,3.1236]
[1718038610155,0.84955786,3698.3,3698.1,3.1236]
[1718038610377,0.56727716,3698.2,3698.1,3.1236]
[1718038611686,0.84955786,3698.3,3698.1,3.1236]
[1718038611999,0.56733592,3698.2,3698.1,0.712]
[1718038612599,0.84955786,3698.3,3698.1,0.712]
[1718038613197,0.84955786,3698.2,3698.1,0.712]
[1718038621273,0.84955786,3698.2,3698.0,0.712]
[1718038621479,0.56759679,3698.1,3698.0,0.712]
[1718038625972,0.56759679,3698.1,3697.8,2.484]
[1718038626289,0.84955786,3698.2,3698.0,0.712]
[1718038627387,0.56757632,3698.1,3698.0,0.712]
[1718038632987,0.84955786,3698.3,3698.1,2.70409]
[1718038632988,0.56757632,3698.3,3698.1,2.70409]
[1718038633187,2.70358,3698.8,3698.3,2.70394]
[1718038633188,0.56757632,3698.4,3698.3,2.70394]
[1718038633408,0.56757632,3698.4,3698.3,5.80084]
[1718038633597,0.56757632,3698.5,3698.3,5.80084]
[1718038633798,12.5729,3699.4,3698.5,2.3849]
[1718038633799,0.84955786,3699.1,3698.5,2.3849]
[1718038634032,0.84955786,3699.1,3699.0,0.712]
[1718038634257,0.125693,3699.5,3699.0,0.712]
[1718038636762,0.125693,3699.5,3699.2,0.712]
[1718038638155,0.125693,3699.5,3699.4,0.712]
[1718038639484,0.125693,3699.5,3699.4,1.292963]
[1718038640163,0.125693,3699.5,3699.4,0.712]
[1718038640665,0.125693,3699.5,3699.2,5.09763]
[1718038640879,0.125693,3699.5,3699.4,0.712]
[1718038645681,0.125693,3699.5,3699.2,5.09763]
[1718038645974,0.125693,3699.5,3699.4,0.712]
[1718038646187,0.125693,3699.5,3699.4,3.688863]
[1718038646480,0.125693,3699.5,3699.4,0.580963]
[1718038646683,0.125693,3699.5,3699.4,0.712]
[1718038649459,0.125693,3699.5,3699.4,3.0059]
[1718038652574,0.125693,3699.5,3698.9,2.2739]
[1718038652885,0.837693,3699.5,3698.9,2.70349]
[1718038653089,0.125693,3699.5,3698.9,3.41549]
[1718038653252,0.4546123,3699.5,3698.9,3.41549]
[1718038654547,0.4546123,3699.5,3698.9,2.70349]
[1718038654885,0.125693,3699.5,3698.9,3.41549]
[1718038655251,0.125693,3699.5,3698.9,2.70349]
[1718038655447,2.828763,3699.5,3698.6,2.70371]
[1718038655652,0.5280263,3699.4,3698.7,0.712]
[1718038656964,0.5280263,3699.4,3698.9,0.712]
[1718038658150,2.828763,3699.5,3698.9,0.712]
[1718038658345,2.828763,3699.5,3699.1,0.712]
[1718038658588,0.125693,3699.5,3699.3,0.712]
[1718038660491,0.125693,3699.5,3699.1,0.712]
[1718038667199,2.70315,3699.4,3699.1,0.712]
[1718038667510,2.70315,3699.4,3698.7,2.7036]
[1718038667511,5.3883343,3699.4,3698.8,0.712]
[1718038667796,5.10545,3699.4,3698.8,0.712]
[1718038670476,2.7033,3699.2,3698.6,7.44]
[1718038670674,2.7033,3699.2,3698.8,0.712]
[1718038672494,2.4023,3699.4,3698.8,0.712]
[1718038672697,2.4023,3699.4,3698.8,3.41556]
[1718038672916,2.828813,3699.5,3698.8,3.41556]
[1718038673132,2.828813,3699.5,3699.0,0.712]
[1718038673342,2.828813,3699.5,3699.0,3.41541]
[1718038680814,2.828813,3699.5,3699.0,5.88921]
[1718038681144,2.2705,3699.4,3698.7,2.70358]
[1718038681349,2.2705,3699.4,3698.7,3.41558]
[1718038681838,2.70324,3699.3,3698.7,2.70358]
[1718038682038,2.70324,3699.3,3698.7,3.41558]
[1718038687558,2.70324,3699.3,3698.9,0.712]
[1718038689029,4.98699,3699.1,3698.5,0.56697188]
[1718038689252,4.98699,3699.1,3698.6,0.712]
[1718038690364,2.70351,3698.9,3698.4,0.712]
[1718038691061,2.70351,3698.9,3698.3,3.41594]
[1718038691223,2.70351,3698.9,3698.3,2.70394]
[1718038692023,3.13315786,3699.1,3698.2,7.44]
[1718038692024,2.70365,3698.7,3698.2,7.44]
[1718038692224,2.70365,3698.7,3698.1,0.04701036]
[1718038692445,2.70365,3698.7,3698.2,0.712]
[1718038693235,2.70365,3698.7,3698.1,0.04701036]
[1718038693568,2.3911,3698.6,3698.1,0.04701036]
[1718038694125,2.70381,3698.5,3698.1,0.04701036]
[1718038694324,2.70381,3698.5,3697.9,0.712]
[1718038694325,3.213301,3698.5,3697.9,0.712]
[1718038694751,2.70381,3698.5,3697.9,0.712]
[1718038702229,2.70381,3698.5,3697.9,3.41621]
[1718038702474,2.70381,3698.5,3698.1,0.712]
[1718038703237,2.4322,3699.0,3698.3,0.712]
[1718038703474,2.7034,3699.1,3698.9,0.712]
[1718038703840,2.70318,3699.4,3699.0,0.00578587]
[1718038704076,3.30092309,3699.4,3699.0,0.00578587]
[1718038704435,2.70318,3699.4,3699.0,0.00578587]
[1718038706182,2.7033,3699.2,3699.0,0.00578587]
[1718038715443,5.0304,3699.2,3699.0,0.00578587]
[1718038716682,0.55,3699.1,3699.0,0.00578587]
[1718038716847,2.8771,3699.1,3699.0,0.00578587]
[1718038717188,4.82417472,3699.1,3699.0,0.00578587]
[1718038717476,3.97489817,3699.1,3699.0,0.00578587]
[1718038718177,4.8241251,3699.1,3699.0,0.00578587]
[1718038720860,3.97489817,3699.1,3699.0,0.00578587]
[1718038721441,2.49699376,3699.1,3699.0,0.00578587]
[1718038721859,0.55,3699.1,3699.0,0.00578587]
[1718038723481,2.7033,3699.2,3699.0,0.00578587]
[1718038724575,3.55249559,3699.2,3699.0,0.00578587]
[1718038729257,0.84919559,3699.1,3699.0,0.00578587]
[1718038730560,2.11119559,3699.1,3699.0,0.00578587]
[1718038730759,3.22339653,3699.1,3699.0,0.00578587]
[1718038733357,2.51139653,3699.1,3699.0,0.00578587]
[1718038733762,1.39919559,3699.1,3699.0,0.00578587]
[1718038733990,0.55,3699.1,3699.0,0.00578587]
[1718038735365,3.55249559,3699.2,3699.0,0.00578587]
[1718038735563,2.7033,3699.2,3699.0,0.00578587]
[1718038746610,3.67801859,3699.5,3699.1,2.2554]
[1718038748695,2.828823,3699.5,3699.1,2.2554]
[1718038754499,0.97488859,3699.5,3699.1,2.2554]
[1718038755533,2.70328,3699.2,3698.6,2.70366]
[1718038757110,2.70347,3699.0,3698.5,2.3838]
[1718038757518,3.55266559,3699.0,3698.5,2.3838]
[1718038757714,2.70347,3699.0,3698.5,2.3838]
[1718038764045,2.70363,3698.8,3698.1,2.281]
[1718038764243,2.70363,3698.8,3698.2,0.712]
[1718038764643,2.70363,3698.8,3698.2,3.712]
[1718038764941,2.70376,3698.6,3698.2,3.712]
[1718038765242,2.70376,3698.6,3698.2,3.0]
[1718038767748,2.70393,3698.4,3698.1,2.281]
[1718038779644,2.70403,3698.2,3697.9,0.47015298]
[1718038781732,2.70403,3698.2,3697.9,0.42314319]
[1718038786267,3.289333,3698.2,3697.9,0.42314319]
[1718038786455,2.70416,3698.0,3697.9,0.42314319]
[1718038796868,2.70416,3698.0,3697.9,2.73864319]
[1718038797067,2.704,3698.3,3697.9,2.73864319]
[1718038800771,0.712,3698.6,3697.9,2.73864319]
[1718038800772,2.70409,3698.1,3697.9,2.73864319]
[1718038801700,6.13403381,3698.8,3697.9,3.35414951]
[1718038801701,2.70393,3698.4,3697.9,3.35414951]
[1718038802370,2.70393,3698.4,3698.0,3.188]
[1718038802546,2.70393,3698.4,3698.1,2.476]
[1718038803178,2.70393,3698.4,3698.0,0.712]
[1718038804468,2.70372,3698.7,3698.0,3.41615]
[1718038804776,2.70372,3698.7,3698.1,0.37008152]
[1718038805075,2.70372,3698.7,3698.2,2.476]
[1718038806673,0.84919559,3698.9,3698.2,5.18001]
[1718038806876,0.84919559,3698.9,3698.2,5.89201]
[1718038807252,2.70358,3698.8,3698.2,5.89201]
[1718038807453,2.70358,3698.8,3698.2,6.52352583]
[1718038808282,2.70358,3698.8,3698.2,5.81152583]
[1718038808487,2.70378,3698.6,3698.2,2.476]
[1718038808787,2.70378,3698.6,3698.0,2.84444831]
[1718038810181,2.70392,3698.4,3698.0,2.84444831]
[1718038810484,2.70392,3698.4,3698.0,0.42314831]
[1718038812993,2.70392,3698.4,3697.7,3.1395]
[1718038813147,2.70392,3698.4,3697.7,3.723889]
[1718038814294,2.70402,3698.2,3697.7,3.723889]
[1718038814998,0.84919559,3698.6,3698.1,3.008]
[1718038815164,2.70371,3698.7,3698.1,3.008]
[1718038815414,2.70381,3698.5,3698.1,2.296]
[1718038818393,3.55282559,3698.8,3698.2,0.712]
[1718038818567,2.70363,3698.8,3698.2,0.712]
[1718038819185,2.70363,3698.8,3698.2,2.9726]
[1718038820499,2.70363,3698.8,3698.3,2.70392]
[1718038820654,0.84919559,3699.0,3698.5,0.712]
[1718038820995,2.70341,3699.1,3698.6,2.2606]
[1718038823870,2.70353,3698.9,3698.2,2.3553]
[1718038824051,2.70353,3698.9,3698.2,3.0673]
[1718038825105,2.70368,3698.7,3698.2,2.3553]
[1718038827376,2.70368,3698.7,3698.1,2.70402]
[1718038827776,2.70368,3698.7,3698.1,3.41602]
[1718038830263,2.70368,3698.7,3698.0,2.4894]
[1718038830591,2.70381,3698.5,3698.0,3.2014]
[1718038831303,2.70381,3698.5,3698.0,2.4894]
[1718038833097,2.70381,3698.5,3697.9,0.712]
[1718038834288,2.70381,3698.5,3697.9,1.288836]
[1718038835567,2.70396,3698.3,3697.7,2.3521]
[1718038836884,2.70396,3698.3,3697.9,0.712]
[1718038837108,2.70396,3698.3,3698.0,2.4516]
[1718038838115,2.70425,3697.9,3697.4,7.44]
[1718038838285,2.70425,3697.9,3697.2,2.4516]
[1718038838484,2.70425,3697.9,3697.2,3.1636]
[1718038838696,3.55344559,3697.9,3697.2,2.4516]
[1718038838921,0.712,3697.7,3696.7,8.43019276]
[1718038839075,0.712,3697.3,3696.7,7.44]
[1718038839273,0.84919559,3697.5,3696.7,7.44]
[1718038839274,0.712,3697.1,3696.7,7.44]
[1718038839483,0.55,3697.0,3696.0,0.56697188]
[1718038839680,0.55,3697.0,3695.8,3.28937032]
[1718038839681,0.712,3696.7,3695.9,0.712]
[1718038839905,3.41717,3696.7,3695.8,2.4389]
[1718038840205,3.41717,3696.7,3695.9,0.57116419]
[1718038840481,3.41717,3696.7,3695.5,1.081824]
[1718038840482,2.70536,3696.4,3695.5,1.081824]
[1718038840838,2.70551,3696.2,3695.5,1.081824]
[1718038841003,2.70565,3696.0,3695.5,1.081824]
[1718038841209,0.712,3695.9,3695.5,1.081824]
[1718038841532,2.70578,3695.8,3695.5,1.081824]
[1718038842139,2.70578,3695.8,3695.0,3.8418131]
[1718038842432,2.70551,3696.2,3695.0,4.22599441]
[1718038842608,2.70551,3696.2,3695.6,0.712]
[1718038842936,3.41725,3696.6,3695.6,0.712]
[1718038843606,0.712,3696.5,3695.6,0.712]
[1718038844731,3.41725,3696.6,3695.6,0.712]
[1718038845523,3.41725,3696.6,3695.5,2.70596]
[1718038845738,3.41725,3696.6,3695.6,0.712]
[1718038847040,2.70525,3696.6,3695.8,0.712]
[1718038847332,2.70525,3696.6,3695.7,3.41783]
[1718038847931,3.41725,3696.6,3695.7,3.41783]
[1718038850106,3.41725,3696.6,3695.7,2.70583]
[1718038851536,2.70537,3696.4,3695.7,2.70583]
[1718038852109,2.65537,3696.4,3695.7,2.70583]
[1718038852810,2.65537,3696.4,3695.5,1.218826]
[1718038853253,2.65537,3696.4,3695.7,0.712]
[1718038855942,2.65537,3696.4,3695.9,0.712]
[1718038856270,2.70514,3696.7,3696.3,0.712]
[1718038856441,2.70493,3697.0,3696.3,0.712]
[1718038856774,2.70493,3697.0,3696.5,0.712]
[1718038857157,3.2029,3697.5,3696.5,0.712]
[1718038857839,2.70469,3697.3,3696.5,0.712]
[1718038860045,2.70469,3697.3,3695.8,2.3225]
[1718038860234,0.712,3697.3,3696.4,0.712]
[1718038860619,2.70498,3696.9,3696.0,0.712]
[1718038860895,2.70498,3696.9,3696.2,0.712]
[1718038861060,3.25477,3697.2,3696.2,0.712]
[1718038861259,2.70477,3697.2,3696.4,0.712]
[1718038861670,2.70477,3697.2,3696.4,3.41729]
[1718038861855,2.70435,3697.8,3696.8,0.712]
[1718038862197,2.2961,3698.4,3697.4,0.712]
[1718038862198,2.70413,3698.1,3697.4,0.712]
[1718038862349,5.00001,3698.4,3697.6,0.712]
[1718038862549,2.70391,3698.4,3697.8,0.712]
[1718038862993,2.70391,3698.4,3697.8,3.4163]
[1718038863570,0.18447438,3698.6,3697.8,3.4163]
[1718038865206,0.18447438,3698.6,3698.0,2.70411]
[1718038865515,3.0,3699.4,3698.0,2.70411]
[1718038865516,2.70346,3699.0,3698.2,2.70397]
[1718038865881,3.41546,3699.0,3698.2,3.41597]
[1718038868104,3.41546,3699.0,3697.5,2.4946]
[1718038868105,2.70323,3699.3,3698.4,3.41581]
[1718038868306,0.55,3699.2,3698.4,3.41581]
[1718038868606,1.343983,3699.1,3698.4,2.70381]
[1718038869386,0.712,3698.6,3698.0,2.7041]
[1718038870407,0.712,3698.8,3698.0,2.7041]
[1718038870631,2.70393,3698.4,3697.5,2.4946]
[1718038870812,0.55,3698.3,3697.5,0.712]
[1718038871303,2.70393,3698.4,3697.8,2.70427]
[1718038871548,2.70367,3698.7,3697.9,0.712]
[1718038871706,0.891567,3698.6,3697.9,0.712]
[1718038871901,0.891567,3698.6,3697.8,2.70427]
[1718038872106,0.891567,3698.6,3698.0,0.712]
[1718038873144,2.70367,3698.7,3698.0,3.41611]
[1718038875009,2.70367,3698.7,3698.2,0.712]
[1718038875447,2.70367,3698.7,3698.0,2.70411]
[1718038875739,2.70367,3698.7,3698.0,3.41611]
[1718038877832,2.70367,3698.7,3698.2,0.712]
[1718038880761,3.41547,3699.0,3698.2,0.712]
[1718038881059,0.891547,3698.9,3698.2,0.712]
[1718038881419,2.70357,3698.8,3698.2,0.712]
[1718038881722,2.70357,3698.8,3698.0,3.41611]
[1718038884545,2.70374,3698.6,3698.0,3.41611]
[1718038887612,3.25356,3698.9,3698.0,3.41611]
[1718038889693,2.70366,3698.7,3698.0,2.70411]
[1718038889897,2.70366,3698.7,3698.0,3.41611]
[1718038890086,2.70366,3698.7,3697.7,2.4407]
[1718038890087,2.70385,3698.5,3697.7,5.14505]
[1718038890292,2.70385,3698.5,3697.8,0.712]
[1718038891879,2.70385,3698.5,3697.7,5.14505]
[1718038892102,2.70385,3698.5,3697.8,0.712]
[1718038892442,3.0850916,3698.5,3697.8,0.712]
[1718038895093,3.0850916,3698.5,3697.9,2.70421]
[1718038896324,2.70385,3698.5,3697.9,2.70421]
[1718038896524,2.70362,3698.8,3698.1,2.70408]
[1718038896730,2.70362,3698.8,3698.1,3.41608]
[1718038899022,2.70362,3698.8,3698.1,2.70408]
[1718038899225,2.70362,3698.8,3698.1,3.41608]
[1718038903222,5.08521,3698.4,3697.5,2.70449]
[1718038903426,5.08521,3698.4,3697.7,0.712]
[1718038904247,2.70402,3698.2,3697.5,2.70449]
[1718038904427,2.70402,3698.2,3697.6,0.712]
[1718038904632,2.70402,3698.2,3697.1,0.29208543]
[1718038904633,2.70433,3697.8,3697.1,0.29208543]
[1718038904829,2.70433,3697.8,3697.1,0.712]
[1718038905028,2.70433,3697.8,3697.0,2.4476]
[1718038905224,5.79763,3697.8,3696.9,10.14492]
[1718038905469,6.63058694,3697.8,3696.9,10.14492]
[1718038905633,7.47978253,3697.8,3697.0,0.712]
[1718038905832,0.84919559,3697.7,3697.0,0.712]
[1718038906235,7.47978253,3697.8,3697.0,0.712]
[1718038906436,3.41653,3697.5,3696.9,7.44]
[1718038906660,2.70453,3697.5,3696.9,7.44]
[1718038908369,2.70453,3697.5,3696.8,0.712]
[1718038908936,2.70472,3697.3,3696.3,9.8876]
[1718038909138,1.56119559,3697.6,3696.3,0.712]
[1718038909139,0.982472,3697.2,3696.3,0.712]
[1718038909346,0.712,3697.4,3696.5,0.712]
[1718038909584,2.70487,3697.1,3696.5,0.712]
[1718038910780,2.70463,3697.4,3696.7,0.712]
[1718038911187,0.84919559,3697.6,3696.9,2.70495]
[1718038911478,3.55359559,3697.7,3697.0,0.712]
[1718038911637,3.55359559,3697.7,3696.9,2.70495]
[1718038911638,2.7044,3697.7,3696.9,2.70495]
[1718038911841,2.7044,3697.7,3697.0,0.712]
[1718038912068,3.4164,3697.7,3696.9,2.70495]
[1718038912546,4.19436394,3697.7,3696.8,0.712]
[1718038912758,2.70467,3697.4,3696.5,4.95992]
[1718038912963,2.70467,3697.4,3696.7,0.712]
[1718038913549,2.70467,3697.4,3696.7,3.41707]
[1718038913754,2.70467,3697.4,3696.8,0.567177]
[1718038914287,2.70467,3697.4,3696.7,3.41707]
[1718038915881,2.70467,3697.4,3696.9,0.712]
[1718038916561,2.70441,3697.7,3696.9,3.41692]
[1718038916784,2.70456,3697.5,3696.9,3.41692]
[1718038917980,2.7047,3697.3,3696.7,0.712]
[1718038919372,2.7047,3697.3,3696.7,1.27919]
[1718038921710,2.70446,3697.6,3696.3,7.44]
[1718038922013,0.84919559,3697.9,3696.2,0.42317201]
[1718038922014,2.70527,3696.5,3696.2,0.42317201]
[1718038923094,0.712,3696.3,3696.2,0.42317201]
[1718038923568,1.262,3696.3,3695.5,7.44]
[1718038923773,0.712,3696.0,3695.5,7.44]
[1718038924786,0.712,3695.6,3694.7,2.70657]
[1718038924989,0.712,3695.3,3694.5,2.48]
[1718038925191,0.712,3695.5,3694.5,2.48]
[1718038925389,2.70614,3695.3,3694.8,0.712]
[1718038925672,2.70614,3695.3,3694.8,1.0312]
[1718038926508,2.70584,3695.8,3694.8,3.73768]
[1718038926674,2.70584,3695.8,3695.0,0.712]
[1718038926875,2.70584,3695.8,3694.8,3.02568]
[1718038927079,2.70584,3695.8,3694.9,0.302568]
[1718038928028,2.70584,3695.8,3695.0,2.70631]
[1718038928203,2.70584,3695.8,3695.0,2.67831]
[1718038928710,2.70598,3695.6,3694.6,2.7066]
[1718038929527,2.70612,3695.4,3694.6,2.7066]
[1718038929694,0.270612,3695.3,3694.6,2.7066]
[1718038931019,2.70622,3695.2,3694.3,2.70685]
[1718038931386,2.70643,3695.0,3694.3,2.70685]
[1718038931589,2.70643,3695.0,3694.0,2.70707]
[1718038931893,3.0041342,3695.0,3693.7,7.44]
[1718038932096,3.0041342,3695.0,3694.2,2.70688]